[Event "Titled Tuesday Blitz November 01 Late 2022"]
[White "Sivakumar, Shaaketh"]
[Black "Antonio, Jorge Carlos"]
[WhiteFideId "30940176"]
[BlackFideId "113190"]
[WhiteElo "2174"]
[BlackElo "2247"]
[Result "1-0"]
[Round "02"]
[TimeControl "180+1"]
[Date "2022.11.02"]
[WhiteClock "0:02:51"]
[BlackClock "0:01:42"]

1. d4 {[%clk 0:03:00]}  d5 {[%clk 0:02:59]} 2. Nf3 {[%clk 0:03:01]}  Nf6 {[%clk 0:02:58]} 3. Bf4 {[%clk 0:03:02]}  c6 {[%clk 0:02:58]} 4. e3 {[%clk 0:03:03]}  e6 {[%clk 0:02:58]} 5. Nbd2 {[%clk 0:03:03]}  Bd6 {[%clk 0:02:58]} 6. Ne5 {[%clk 0:03:03]}  O-O {[%clk 0:02:57]} 7. Bd3 {[%clk 0:03:03]}  b6 {[%clk 0:02:56]} 8. h4 {[%clk 0:03:03]}  Ba6 {[%clk 0:02:55]} 9. Bxa6 {[%clk 0:03:01]}  Nxa6 {[%clk 0:02:55]} 10. Nxc6 {[%clk 0:03:01]}  Qc7 {[%clk 0:02:52]} 11. Bxd6 {[%clk 0:03:01]}  Qxd6 {[%clk 0:02:51]} 12. Ne5 {[%clk 0:03:02]}  Rac8 {[%clk 0:02:49]} 13. c3 {[%clk 0:03:02]}  Nd7 {[%clk 0:02:46]} 14. Nxd7 {[%clk 0:03:01]}  Qxd7 {[%clk 0:02:46]} 15. O-O {[%clk 0:03:02]}  b5 {[%clk 0:02:43]} 16. e4 {[%clk 0:03:02]}  dxe4 {[%clk 0:02:42]} 17. Nxe4 {[%clk 0:03:03]}  b4 {[%clk 0:02:42]} 18. Rc1 {[%clk 0:03:02]}  bxc3 {[%clk 0:02:42]} 19. bxc3 {[%clk 0:03:03]}  Nc7 {[%clk 0:02:41]} 20. Qe2 {[%clk 0:03:02]}  Nd5 {[%clk 0:02:40]} 21. Rfd1 {[%clk 0:03:02]}  Nb6 {[%clk 0:02:36]} 22. c4 {[%clk 0:03:00]}  Rc7 {[%clk 0:02:35]} 23. Nc5 {[%clk 0:02:59]}  Qe7 {[%clk 0:02:31]} 24. a4 {[%clk 0:02:59]}  Qxh4 {[%clk 0:02:30]} 25. a5 {[%clk 0:02:58]}  Nd7 {[%clk 0:02:28]} 26. Na6 {[%clk 0:02:55]}  Rc6 {[%clk 0:02:24]} 27. Nb4 {[%clk 0:02:55]}  Rc7 {[%clk 0:02:24]} 28. c5 {[%clk 0:02:56]}  Rb8 {[%clk 0:02:20]} 29. Na6 {[%clk 0:02:54]}  Rbc8 {[%clk 0:02:15]} 30. Nxc7 {[%clk 0:02:53]}  Rxc7 {[%clk 0:02:15]} 31. d5 {[%clk 0:02:53]}  exd5 {[%clk 0:02:12]} 32. Rxd5 {[%clk 0:02:53]}  h6 {[%clk 0:02:08]} 33. c6 {[%clk 0:02:53]}  Nf6 {[%clk 0:02:07]} 34. Rd8+ {[%clk 0:02:51]}  Kh7 {[%clk 0:02:07]} 35. Qd3+ {[%clk 0:02:51]}  g6 {[%clk 0:02:06]} 36. Qd4 {[%clk 0:02:50]}  Qg5 {[%clk 0:01:56]} 37. f4 {[%clk 0:02:50]}  Qf5 {[%clk 0:01:54]} 38. Qe5 {[%clk 0:02:48]}  Qxe5 {[%clk 0:01:50]} 39. fxe5 {[%clk 0:02:49]}  Ne4 {[%clk 0:01:49]} 40. Rd7 {[%clk 0:02:50]}  Rc8 {[%clk 0:01:47]} 41. c7 {[%clk 0:02:50]}  Ng3 {[%clk 0:01:43]} 42. Rxf7+ {[%clk 0:02:49]}  Kg8 {[%clk 0:01:42]} 43. Rd7 {[%clk 0:02:50]}  Ne2+ {[%clk 0:01:42]} 44. Kf2 {[%clk 0:02:50]}  Nxc1 {[%clk 0:01:42]} 45. Rd8+ {[%clk 0:02:51]}  Kf7 {[%clk 0:01:42]} 46. Rxc8 {[%clk 0:02:51]} 1-0


[Site "https://www.chess.com"]

[Event "Titled Tuesday Blitz November 01 Late 2022"]
[White "Sjugirov, Sanan"]
[Black "Dilanyan, Grigor"]
[WhiteFideId "4189302"]
[BlackFideId "13303570"]
[WhiteElo "2609"]
[BlackElo "2264"]
[Result "1-0"]
[Round "02"]
[TimeControl "180+1"]
[Date "2022.11.01"]
[WhiteClock "0:00:40"]
[BlackClock "0:01:38"]

1. Nf3 {[%clk 0:03:00]}  b6 {[%clk 0:02:58]} 2. g3 {[%clk 0:02:59]}  Bb7 {[%clk 0:02:59]} 3. Bg2 {[%clk 0:02:59]}  h5 {[%clk 0:02:59]} 4. d3 {[%clk 0:02:50]}  e6 {[%clk 0:02:59]} 5. e4 {[%clk 0:02:49]}  d5 {[%clk 0:02:55]} 6. exd5 {[%clk 0:02:46]}  Bxd5 {[%clk 0:02:48]} 7. Nc3 {[%clk 0:02:43]}  Bb7 {[%clk 0:02:49]} 8. h4 {[%clk 0:02:33]}  Nf6 {[%clk 0:02:46]} 9. Bg5 {[%clk 0:02:32]}  Be7 {[%clk 0:02:46]} 10. Qe2 {[%clk 0:02:30]}  Nc6 {[%clk 0:02:44]} 11. O-O {[%clk 0:02:23]}  Nd4 {[%clk 0:02:34]} 12. Nxd4 {[%clk 0:02:23]}  Bxg2 {[%clk 0:02:34]} 13. Kxg2 {[%clk 0:01:58]}  Qxd4 {[%clk 0:02:31]} 14. Qf3 {[%clk 0:01:52]}  Nd5 {[%clk 0:02:31]} 15. Bd2 {[%clk 0:01:29]}  c6 {[%clk 0:02:19]} 16. Rfe1 {[%clk 0:01:27]}  g6 {[%clk 0:02:17]} 17. Ne4 {[%clk 0:01:07]}  O-O {[%clk 0:01:50]} 18. c4 {[%clk 0:00:59]}  Nb4 {[%clk 0:01:48]} 19. Bc3 {[%clk 0:00:51]}  Qxd3 {[%clk 0:01:48]} 20. Nf6+ {[%clk 0:00:49]}  Kh8 {[%clk 0:01:48]} 21. Nd5+ {[%clk 0:00:41]}  f6 {[%clk 0:01:48]} 22. Nxe7 {[%clk 0:00:40]}  Qxf3+ {[%clk 0:01:48]} 23. Kxf3 {[%clk 0:00:41]}  Kg7 {[%clk 0:01:38]} 24. Bxb4 {[%clk 0:00:40]} 1-0


[Site "https://www.chess.com"]

[Event "Titled Tuesday Blitz November 01 Late 2022"]
[White "Soto Vega, Jorge"]
[Black "McConnell, Griffin"]
[WhiteFideId "3800580"]
[BlackFideId "30942551"]
[WhiteElo "2263"]
[BlackElo "2323"]
[Result "0-1"]
[Round "02"]
[TimeControl "180+1"]
[Date "2022.11.02"]
[WhiteClock "0:00:01"]
[BlackClock "0:00:12"]

1. e4 {[%clk 0:03:00]}  c6 {[%clk 0:03:00]} 2. d4 {[%clk 0:02:59]}  d5 {[%clk 0:03:00]} 3. f3 {[%clk 0:02:58]}  Qb6 {[%clk 0:02:59]} 4. Nc3 {[%clk 0:02:57]}  e6 {[%clk 0:02:58]} 5. Nge2 {[%clk 0:02:56]}  Ne7 {[%clk 0:02:58]} 6. Qd3 {[%clk 0:02:51]}  Ng6 {[%clk 0:02:58]} 7. h4 {[%clk 0:02:50]}  Nd7 {[%clk 0:02:54]} 8. h5 {[%clk 0:02:49]}  Ne7 {[%clk 0:02:55]} 9. h6 {[%clk 0:02:39]}  g6 {[%clk 0:02:52]} 10. a3 {[%clk 0:02:35]}  f6 {[%clk 0:02:49]} 11. Nf4 {[%clk 0:02:28]}  Kf7 {[%clk 0:02:44]} 12. Qe3 {[%clk 0:02:24]}  e5 {[%clk 0:02:35]} 13. Nfe2 {[%clk 0:02:06]}  exd4 {[%clk 0:02:30]} 14. Qxd4 {[%clk 0:02:01]}  c5 {[%clk 0:02:08]} 15. Qa4 {[%clk 0:01:40]}  d4 {[%clk 0:01:57]} 16. Nd1 {[%clk 0:01:15]}  Ne5 {[%clk 0:01:52]} 17. b4 {[%clk 0:01:06]}  N7c6 {[%clk 0:01:35]} 18. bxc5 {[%clk 0:00:19]}  Bxc5 {[%clk 0:01:35]} 19. Nf4 {[%clk 0:00:19]}  Qa5+ {[%clk 0:01:14]} 20. Qxa5 {[%clk 0:00:19]}  Nxa5 {[%clk 0:01:15]} 21. Nb2 {[%clk 0:00:19]}  g5 {[%clk 0:01:09]} 22. Nfd3 {[%clk 0:00:18]}  Bd6 {[%clk 0:01:02]} 23. Nxe5+ {[%clk 0:00:18]}  Bxe5 {[%clk 0:00:58]} 24. Nd3 {[%clk 0:00:17]}  Rg8 {[%clk 0:00:52]} 25. Nxe5+ {[%clk 0:00:15]}  fxe5 {[%clk 0:00:52]} 26. Bd2 {[%clk 0:00:14]}  Nc6 {[%clk 0:00:50]} 27. Rb1 {[%clk 0:00:14]}  b6 {[%clk 0:00:43]} 28. Bb5 {[%clk 0:00:12]}  Bd7 {[%clk 0:00:38]} 29. Rh5 {[%clk 0:00:11]}  Kf6 {[%clk 0:00:35]} 30. g4 {[%clk 0:00:05]}  Rad8 {[%clk 0:00:29]} 31. Kf2 {[%clk 0:00:04]}  Ne7 {[%clk 0:00:29]} 32. Bd3 {[%clk 0:00:03]}  Nc6 {[%clk 0:00:20]} 33. Rhh1 {[%clk 0:00:03]}  Be6 {[%clk 0:00:19]} 34. Rb5 {[%clk 0:00:03]}  Rc8 {[%clk 0:00:15]} 35. a4 {[%clk 0:00:02]}  Nb8 {[%clk 0:00:14]} 36. a5 {[%clk 0:00:02]}  Bd7 {[%clk 0:00:14]} 37. Rbb1 {[%clk 0:00:01]}  bxa5 {[%clk 0:00:11]} 38. Bxa5 {[%clk 0:00:01]}  Nc6 {[%clk 0:00:12]} 39. Bd2 {[%clk 0:00:01]}  Rb8 {[%clk 0:00:12]} 0-1


[Site "https://www.chess.com"]

[Event "Titled Tuesday Blitz November 01 Late 2022"]
[White "Szente Varga, Fruzsina"]
[Black "Bersamina, Paulo"]
[WhiteFideId "712264"]
[BlackFideId "5206995"]
[WhiteElo "1994"]
[BlackElo "2332"]
[Result "0-1"]
[Round "02"]
[TimeControl "180+1"]
[Date "2022.11.02"]
[WhiteClock "0:00:14"]
[BlackClock "0:02:14"]

1. e4 {[%clk 0:03:00]}  c5 {[%clk 0:02:59]} 2. Nf3 {[%clk 0:03:00]}  d6 {[%clk 0:02:59]} 3. d4 {[%clk 0:03:00]}  cxd4 {[%clk 0:03:00]} 4. Qxd4 {[%clk 0:03:01]}  Nc6 {[%clk 0:02:58]} 5. Bb5 {[%clk 0:03:01]}  Bd7 {[%clk 0:02:59]} 6. Qd3 {[%clk 0:03:01]}  g6 {[%clk 0:02:58]} 7. c4 {[%clk 0:03:00]}  Bg7 {[%clk 0:02:58]} 8. Nc3 {[%clk 0:03:00]}  Nf6 {[%clk 0:02:58]} 9. O-O {[%clk 0:03:00]}  O-O {[%clk 0:02:58]} 10. Rb1 {[%clk 0:02:55]}  a6 {[%clk 0:02:58]} 11. Bxc6 {[%clk 0:02:55]}  Bxc6 {[%clk 0:02:59]} 12. b4 {[%clk 0:02:55]}  b6 {[%clk 0:02:55]} 13. Nd4 {[%clk 0:02:49]}  Bb7 {[%clk 0:02:54]} 14. Be3 {[%clk 0:02:30]}  Nd7 {[%clk 0:02:54]} 15. f4 {[%clk 0:02:27]}  a5 {[%clk 0:02:40]} 16. a3 {[%clk 0:01:59]}  axb4 {[%clk 0:02:40]} 17. axb4 {[%clk 0:02:00]}  Ra3 {[%clk 0:02:40]} 18. Ndb5 {[%clk 0:01:42]}  Ra6 {[%clk 0:02:40]} 19. Ra1 {[%clk 0:01:40]}  Qc8 {[%clk 0:02:40]} 20. Rxa6 {[%clk 0:01:25]}  Bxa6 {[%clk 0:02:41]} 21. Nd5 {[%clk 0:01:25]}  Qd8 {[%clk 0:02:35]} 22. Bd4 {[%clk 0:00:58]}  Bxb5 {[%clk 0:02:35]} 23. cxb5 {[%clk 0:00:58]}  e6 {[%clk 0:02:35]} 24. Ne3 {[%clk 0:00:54]}  Nf6 {[%clk 0:02:30]} 25. Nc4 {[%clk 0:00:51]}  d5 {[%clk 0:02:28]} 26. Bxb6 {[%clk 0:00:41]}  Qb8 {[%clk 0:02:28]} 27. Bc5 {[%clk 0:00:26]}  dxc4 {[%clk 0:02:27]} 28. Qxc4 {[%clk 0:00:27]}  Rd8 {[%clk 0:02:27]} 29. b6 {[%clk 0:00:27]}  Qb7 {[%clk 0:02:26]} 30. Re1 {[%clk 0:00:25]}  h5 {[%clk 0:02:25]} 31. Qb5 {[%clk 0:00:25]}  Nxe4 {[%clk 0:02:24]} 32. Rc1 {[%clk 0:00:20]}  h4 {[%clk 0:02:24]} 33. h3 {[%clk 0:00:20]}  Ng3 {[%clk 0:02:24]} 34. Bf2 {[%clk 0:00:17]}  Bh6 {[%clk 0:02:15]} 35. Qc4 {[%clk 0:00:15]}  Bxf4 {[%clk 0:02:13]} 36. Qxf4 {[%clk 0:00:14]}  Ne2+ {[%clk 0:02:14]} 0-1


[Site "https://www.chess.com"]

[Event "Titled Tuesday Blitz November 01 Late 2022"]
[White "Tarigan, Gilbert Elroy"]
[Black "Melikhov, Evgeny V."]
[WhiteFideId "7108133"]
[BlackFideId "4122046"]
[WhiteElo "2284"]
[BlackElo "2169"]
[Result "1/2-1/2"]
[Round "02"]
[TimeControl "180+1"]
[Date "2022.11.02"]
[WhiteClock "0:00:59"]
[BlackClock "0:00:27"]

1. b3 {[%clk 0:02:59]}  e5 {[%clk 0:02:58]} 2. Bb2 {[%clk 0:03:00]}  Nc6 {[%clk 0:02:58]} 3. e3 {[%clk 0:03:00]}  a6 {[%clk 0:02:58]} 4. c4 {[%clk 0:02:59]}  d5 {[%clk 0:02:57]} 5. cxd5 {[%clk 0:02:59]}  Qxd5 {[%clk 0:02:56]} 6. Nf3 {[%clk 0:02:58]}  Bg4 {[%clk 0:02:07]} 7. h3 {[%clk 0:02:57]}  Bh5 {[%clk 0:02:03]} 8. Nc3 {[%clk 0:02:57]}  Qd7 {[%clk 0:01:50]} 9. Ne4 {[%clk 0:02:57]}  O-O-O {[%clk 0:01:35]} 10. Ng3 {[%clk 0:02:57]}  Bxf3 {[%clk 0:01:27]} 11. gxf3 {[%clk 0:02:58]}  Bb4 {[%clk 0:01:17]} 12. Bc3 {[%clk 0:02:49]}  Bxc3 {[%clk 0:01:15]} 13. dxc3 {[%clk 0:02:50]}  Qxd1+ {[%clk 0:01:16]} 14. Rxd1 {[%clk 0:02:51]}  Rxd1+ {[%clk 0:01:16]} 15. Kxd1 {[%clk 0:02:52]}  Nge7 {[%clk 0:01:15]} 16. h4 {[%clk 0:02:51]}  h5 {[%clk 0:01:11]} 17. Ne4 {[%clk 0:02:48]}  f5 {[%clk 0:01:03]} 18. Ng5 {[%clk 0:02:43]}  g6 {[%clk 0:01:00]} 19. Bc4 {[%clk 0:02:41]}  Rd8+ {[%clk 0:00:56]} 20. Kc2 {[%clk 0:02:42]}  Nd5 {[%clk 0:00:35]} 21. Rd1 {[%clk 0:02:33]}  Ndb4+ {[%clk 0:00:33]} 22. cxb4 {[%clk 0:02:24]}  Nxb4+ {[%clk 0:00:33]} 23. Kc1 {[%clk 0:02:01]}  Nxa2+ {[%clk 0:00:31]} 24. Kc2 {[%clk 0:01:23]}  Nb4+ {[%clk 0:00:29]} 25. Kc3 {[%clk 0:01:08]}  Na2+ {[%clk 0:00:28]} 26. Kc2 {[%clk 0:01:03]}  Nb4+ {[%clk 0:00:27]} 27. Kc1 {[%clk 0:01:00]}  Na2+ {[%clk 0:00:27]} 28. Kc2 {[%clk 0:00:59]} 1/2-1/2


[Site "https://www.chess.com"]

[Event "Titled Tuesday Blitz November 01 Late 2022"]
[White "Timmermans, Mark"]
[Black "Santos Flores, Alberto"]
[WhiteFideId "1026399"]
[BlackFideId "3601234"]
[WhiteElo "2774"]
[BlackElo "2539"]
[Result "1-0"]
[Round "02"]
[TimeControl "180+1"]
[Date "2022.11.02"]
[WhiteClock "0:01:00"]
[BlackClock "0:00:07"]

1. b4 {[%clk 0:03:00]}  e6 {[%clk 0:02:58]} 2. Bb2 {[%clk 0:03:00]}  Nf6 {[%clk 0:02:58]} 3. b5 {[%clk 0:03:00]}  a6 {[%clk 0:02:56]} 4. a4 {[%clk 0:02:59]}  axb5 {[%clk 0:02:56]} 5. axb5 {[%clk 0:03:00]}  Rxa1 {[%clk 0:02:57]} 6. Bxa1 {[%clk 0:03:01]}  d5 {[%clk 0:02:55]} 7. e3 {[%clk 0:03:01]}  Be7 {[%clk 0:02:55]} 8. c4 {[%clk 0:03:01]}  O-O {[%clk 0:02:52]} 9. Nf3 {[%clk 0:03:00]}  c6 {[%clk 0:02:49]} 10. Be2 {[%clk 0:03:00]}  cxb5 {[%clk 0:02:46]} 11. cxb5 {[%clk 0:02:58]}  Nbd7 {[%clk 0:02:42]} 12. O-O {[%clk 0:02:58]}  b6 {[%clk 0:02:42]} 13. d4 {[%clk 0:02:56]}  Bb7 {[%clk 0:02:41]} 14. Nbd2 {[%clk 0:02:56]}  Ne4 {[%clk 0:02:39]} 15. Nxe4 {[%clk 0:02:55]}  dxe4 {[%clk 0:02:39]} 16. Nd2 {[%clk 0:02:56]}  Qa8 {[%clk 0:02:30]} 17. Bb2 {[%clk 0:02:50]}  Rc8 {[%clk 0:02:29]} 18. Qb1 {[%clk 0:02:47]}  Bd5 {[%clk 0:02:25]} 19. Rc1 {[%clk 0:02:41]}  f5 {[%clk 0:02:00]} 20. Bc4 {[%clk 0:02:30]}  Nf6 {[%clk 0:01:55]} 21. h3 {[%clk 0:02:18]}  Bxc4 {[%clk 0:01:41]} 22. Nxc4 {[%clk 0:02:19]}  Nd5 {[%clk 0:01:40]} 23. Ne5 {[%clk 0:02:18]}  Rxc1+ {[%clk 0:01:29]} 24. Qxc1 {[%clk 0:02:19]}  Bd6 {[%clk 0:01:18]} 25. Qc4 {[%clk 0:02:06]}  Bxe5 {[%clk 0:01:14]} 26. dxe5 {[%clk 0:02:07]}  Kf7 {[%clk 0:01:05]} 27. g3 {[%clk 0:02:07]}  Qb7 {[%clk 0:00:58]} 28. Bd4 {[%clk 0:02:06]}  Qd7 {[%clk 0:00:56]} 29. Kg2 {[%clk 0:01:59]}  Qc7 {[%clk 0:00:56]} 30. Qa4 {[%clk 0:01:58]}  Kg6 {[%clk 0:00:50]} 31. h4 {[%clk 0:01:55]}  h5 {[%clk 0:00:49]} 32. Qa8 {[%clk 0:01:52]}  Qd7 {[%clk 0:00:46]} 33. Qg8 {[%clk 0:01:36]}  Ne7 {[%clk 0:00:39]} 34. Qb8 {[%clk 0:01:27]}  Nd5 {[%clk 0:00:39]} 35. Qd6 {[%clk 0:01:13]}  Qxd6 {[%clk 0:00:19]} 36. exd6 {[%clk 0:01:14]}  Kf7 {[%clk 0:00:20]} 37. Bxg7 {[%clk 0:01:14]}  Ke8 {[%clk 0:00:19]} 38. Kf1 {[%clk 0:01:10]}  Nb4 {[%clk 0:00:17]} 39. Bd4 {[%clk 0:01:08]}  Nd5 {[%clk 0:00:12]} 40. Ke2 {[%clk 0:01:08]}  Kd7 {[%clk 0:00:12]} 41. Be5 {[%clk 0:01:08]}  Nb4 {[%clk 0:00:12]} 42. f3 {[%clk 0:01:09]}  Nd3 {[%clk 0:00:12]} 43. Bd4 {[%clk 0:01:07]}  Kxd6 {[%clk 0:00:09]} 44. Bxb6 {[%clk 0:01:06]}  Kd5 {[%clk 0:00:09]} 45. Bd4 {[%clk 0:01:03]}  Nb4 {[%clk 0:00:08]} 46. g4 {[%clk 0:00:59]}  fxg4 {[%clk 0:00:07]} 47. fxg4 {[%clk 0:00:59]}  hxg4 {[%clk 0:00:07]} 48. h5 {[%clk 0:00:59]}  e5 {[%clk 0:00:07]} 49. h6 {[%clk 0:00:59]}  exd4 {[%clk 0:00:07]} 50. exd4 {[%clk 0:01:00]}  g3 {[%clk 0:00:05]} 51. h7 {[%clk 0:01:00]}  g2 {[%clk 0:00:06]} 52. Kf2 {[%clk 0:01:00]}  e3+ {[%clk 0:00:07]} 53. Kxg2 {[%clk 0:01:00]} 1-0


[Site "https://www.chess.com"]

[Event "Titled Tuesday Blitz November 01 Late 2022"]
[White "Tomaszewski, Kacper"]
[Black "Bartel, Mateusz"]
[WhiteFideId "1127373"]
[BlackFideId "1112635"]
[WhiteElo "2556"]
[BlackElo "2808"]
[Result "0-1"]
[Round "02"]
[TimeControl "180+1"]
[Date "2022.11.02"]
[WhiteClock "0:00:01"]
[BlackClock "0:00:09"]

1. d4 {[%clk 0:03:00]}  Nf6 {[%clk 0:02:58]} 2. c4 {[%clk 0:03:01]}  g6 {[%clk 0:02:58]} 3. Nc3 {[%clk 0:03:01]}  Bg7 {[%clk 0:02:59]} 4. e4 {[%clk 0:03:01]}  O-O {[%clk 0:03:00]} 5. Be2 {[%clk 0:03:01]}  c6 {[%clk 0:02:58]} 6. Be3 {[%clk 0:03:01]}  d6 {[%clk 0:02:46]} 7. h3 {[%clk 0:03:00]}  e5 {[%clk 0:02:44]} 8. d5 {[%clk 0:02:50]}  Na6 {[%clk 0:02:37]} 9. Nf3 {[%clk 0:02:47]}  cxd5 {[%clk 0:02:23]} 10. cxd5 {[%clk 0:02:47]}  Bd7 {[%clk 0:02:23]} 11. O-O {[%clk 0:02:45]}  Qa5 {[%clk 0:02:24]} 12. Nd2 {[%clk 0:02:42]}  Rfc8 {[%clk 0:02:24]} 13. Nc4 {[%clk 0:02:37]}  Qc7 {[%clk 0:02:18]} 14. a4 {[%clk 0:02:28]}  Ne8 {[%clk 0:02:16]} 15. Nb5 {[%clk 0:02:20]}  Qb8 {[%clk 0:02:15]} 16. Qb3 {[%clk 0:02:06]}  Nc5 {[%clk 0:02:14]} 17. Qc2 {[%clk 0:02:00]}  f5 {[%clk 0:01:53]} 18. f3 {[%clk 0:01:58]}  f4 {[%clk 0:01:50]} 19. Bf2 {[%clk 0:01:49]}  Na6 {[%clk 0:01:16]} 20. Qb3 {[%clk 0:01:35]}  Bf8 {[%clk 0:01:16]} 21. Rfc1 {[%clk 0:01:28]}  Nac7 {[%clk 0:01:16]} 22. Nc3 {[%clk 0:01:05]}  Be7 {[%clk 0:01:14]} 23. Na5 {[%clk 0:01:00]}  b6 {[%clk 0:00:58]} 24. Nc6 {[%clk 0:01:00]}  Bxc6 {[%clk 0:00:59]} 25. dxc6+ {[%clk 0:01:00]}  Kg7 {[%clk 0:00:59]} 26. Bc4 {[%clk 0:00:54]}  Nf6 {[%clk 0:00:52]} 27. Be6 {[%clk 0:00:37]}  Rd8 {[%clk 0:00:52]} 28. Nb5 {[%clk 0:00:32]}  g5 {[%clk 0:00:39]} 29. a5 {[%clk 0:00:29]}  bxa5 {[%clk 0:00:39]} 30. Nxc7 {[%clk 0:00:22]}  Qxc7 {[%clk 0:00:40]} 31. Qb7 {[%clk 0:00:20]}  Ne8 {[%clk 0:00:38]} 32. Bd5 {[%clk 0:00:11]}  Rdb8 {[%clk 0:00:37]} 33. Qxc7 {[%clk 0:00:10]}  Nxc7 {[%clk 0:00:38]} 34. Rxa5 {[%clk 0:00:07]}  a6 {[%clk 0:00:35]} 35. b3 {[%clk 0:00:06]}  Bd8 {[%clk 0:00:35]} 36. Ra4 {[%clk 0:00:05]}  Nxd5 {[%clk 0:00:27]} 37. exd5 {[%clk 0:00:06]}  Bc7 {[%clk 0:00:27]} 38. Rca1 {[%clk 0:00:05]}  a5 {[%clk 0:00:27]} 39. Be1 {[%clk 0:00:04]}  Rb5 {[%clk 0:00:27]} 40. Bc3 {[%clk 0:00:04]}  Rxd5 {[%clk 0:00:27]} 41. b4 {[%clk 0:00:04]}  Ra6 {[%clk 0:00:27]} 42. bxa5 {[%clk 0:00:04]}  Rc5 {[%clk 0:00:27]} 43. Be1 {[%clk 0:00:04]}  Rcxc6 {[%clk 0:00:27]} 44. Bf2 {[%clk 0:00:04]}  Kf6 {[%clk 0:00:27]} 45. Kh2 {[%clk 0:00:03]}  Ke6 {[%clk 0:00:27]} 46. Bg1 {[%clk 0:00:04]}  d5 {[%clk 0:00:27]} 47. Bf2 {[%clk 0:00:04]}  h5 {[%clk 0:00:23]} 48. Rb1 {[%clk 0:00:05]}  Rxa5 {[%clk 0:00:22]} 49. Rxa5 {[%clk 0:00:04]}  Bxa5 {[%clk 0:00:23]} 50. Rb7 {[%clk 0:00:04]}  Bc7 {[%clk 0:00:22]} 51. Ra7 {[%clk 0:00:03]}  e4 {[%clk 0:00:22]} 52. fxe4 {[%clk 0:00:03]}  dxe4 {[%clk 0:00:23]} 53. Ra8 {[%clk 0:00:03]}  f3+ {[%clk 0:00:21]} 54. g3 {[%clk 0:00:03]}  Rc2 {[%clk 0:00:21]} 55. Kg1 {[%clk 0:00:03]}  Rc1+ {[%clk 0:00:21]} 56. Kh2 {[%clk 0:00:03]}  Rc2 {[%clk 0:00:15]} 57. Kg1 {[%clk 0:00:03]}  Be5 {[%clk 0:00:12]} 58. Re8+ {[%clk 0:00:03]}  Kd5 {[%clk 0:00:11]} 59. Rd8+ {[%clk 0:00:03]}  Kc4 {[%clk 0:00:12]} 60. Be3 {[%clk 0:00:03]}  Rg2+ {[%clk 0:00:09]} 61. Kf1 {[%clk 0:00:03]}  Rxg3 {[%clk 0:00:10]} 62. Bf2 {[%clk 0:00:01]}  Rxh3 {[%clk 0:00:09]} 0-1


[Site "https://www.chess.com"]

[Event "Titled Tuesday Blitz November 01 Late 2022"]
[White "Urbina Perez, Juan Antonio"]
[Black "Sailer, Mike"]
[WhiteFideId "2217368"]
[BlackFideId "2012901"]
[WhiteElo "2197"]
[BlackElo "2109"]
[Result "1-0"]
[Round "02"]
[TimeControl "180+1"]
[Date "2022.11.02"]
[WhiteClock "0:02:01"]
[BlackClock "0:00:36"]

1. e4 {[%clk 0:03:00]}  d5 {[%clk 0:02:59]} 2. exd5 {[%clk 0:03:00]}  Qxd5 {[%clk 0:02:55]} 3. Nc3 {[%clk 0:03:00]}  Qd6 {[%clk 0:02:56]} 4. d4 {[%clk 0:03:00]}  Nf6 {[%clk 0:02:56]} 5. Bc4 {[%clk 0:03:00]}  c6 {[%clk 0:02:57]} 6. Nge2 {[%clk 0:03:01]}  Bf5 {[%clk 0:02:56]} 7. Bf4 {[%clk 0:03:01]}  Qd8 {[%clk 0:02:57]} 8. Qd2 {[%clk 0:03:01]}  e6 {[%clk 0:02:57]} 9. O-O-O {[%clk 0:03:02]}  Nbd7 {[%clk 0:02:57]} 10. h4 {[%clk 0:02:54]}  h6 {[%clk 0:02:57]} 11. f3 {[%clk 0:02:49]}  Nb6 {[%clk 0:02:57]} 12. Bb3 {[%clk 0:02:49]}  Bb4 {[%clk 0:02:58]} 13. g4 {[%clk 0:02:47]}  Bh7 {[%clk 0:02:57]} 14. g5 {[%clk 0:02:47]}  Nfd5 {[%clk 0:02:53]} 15. a3 {[%clk 0:02:37]}  Nxc3 {[%clk 0:02:36]} 16. Nxc3 {[%clk 0:02:38]}  Bxc3 {[%clk 0:02:33]} 17. Qxc3 {[%clk 0:02:39]}  Nd5 {[%clk 0:02:28]} 18. Bxd5 {[%clk 0:02:38]}  Qxd5 {[%clk 0:02:26]} 19. gxh6 {[%clk 0:02:36]}  gxh6 {[%clk 0:02:27]} 20. Be5 {[%clk 0:02:17]}  Rg8 {[%clk 0:02:14]} 21. Rhg1 {[%clk 0:02:17]}  O-O-O {[%clk 0:02:13]} 22. b3 {[%clk 0:02:10]}  Rxg1 {[%clk 0:02:04]} 23. Rxg1 {[%clk 0:02:11]}  Rg8 {[%clk 0:02:03]} 24. Rxg8+ {[%clk 0:02:07]}  Bxg8 {[%clk 0:02:04]} 25. Qe3 {[%clk 0:02:08]}  Bh7 {[%clk 0:01:20]} 26. Qxh6 {[%clk 0:02:05]}  Bg6 {[%clk 0:01:04]} 27. h5 {[%clk 0:02:05]}  Bf5 {[%clk 0:00:46]} 28. Qf8+ {[%clk 0:02:05]}  Qd8 {[%clk 0:00:46]} 29. Qxf7 {[%clk 0:02:04]}  b6 {[%clk 0:00:36]} 30. h6 {[%clk 0:02:01]} 1-0


[Site "https://www.chess.com"]

[Event "Titled Tuesday Blitz November 01 Late 2022"]
[White "Veleshnja, Zino"]
[Black "Seo, Jung Min"]
[WhiteFideId "4701313"]
[BlackFideId "1734687"]
[WhiteElo "2167"]
[BlackElo "2455"]
[Result "0-1"]
[Round "02"]
[TimeControl "180+1"]
[Date "2022.11.02"]
[WhiteClock "0:02:14"]
[BlackClock "0:01:38"]

1. d4 {[%clk 0:03:00]}  Nf6 {[%clk 0:03:00]} 2. c4 {[%clk 0:03:01]}  g6 {[%clk 0:03:00]} 3. Nc3 {[%clk 0:03:00]}  Bg7 {[%clk 0:03:00]} 4. e4 {[%clk 0:03:00]}  d6 {[%clk 0:03:01]} 5. Be2 {[%clk 0:03:00]}  O-O {[%clk 0:03:01]} 6. Bg5 {[%clk 0:03:01]}  h6 {[%clk 0:02:57]} 7. Be3 {[%clk 0:03:00]}  e5 {[%clk 0:02:57]} 8. d5 {[%clk 0:03:00]}  a5 {[%clk 0:02:44]} 9. h4 {[%clk 0:03:00]}  h5 {[%clk 0:02:43]} 10. Bg5 {[%clk 0:02:57]}  Na6 {[%clk 0:02:41]} 11. Nf3 {[%clk 0:02:56]}  Nc5 {[%clk 0:02:37]} 12. Nh2 {[%clk 0:02:52]}  Qd7 {[%clk 0:02:34]} 13. Bxf6 {[%clk 0:02:37]}  Bxf6 {[%clk 0:02:34]} 14. g4 {[%clk 0:02:37]}  Bxh4 {[%clk 0:02:16]} 15. gxh5 {[%clk 0:02:36]}  f5 {[%clk 0:02:05]} 16. Qd2 {[%clk 0:02:35]}  fxe4 {[%clk 0:01:56]} 17. O-O-O {[%clk 0:02:36]}  Qe7 {[%clk 0:01:49]} 18. Kb1 {[%clk 0:02:35]}  Rxf2 {[%clk 0:01:44]} 19. Rdg1 {[%clk 0:02:23]}  Bf5 {[%clk 0:01:42]} 20. Ng4 {[%clk 0:02:14]}  e3+ {[%clk 0:01:38]} 0-1


[Site "https://www.chess.com"]